Cogmind - Beta 16.1 @@@ ROGUE MODE // 2026.02.14 @ 21:33:39 Player: Gingerlink Result: Destroyed by G-34 Mercenary with Small Laser Performance ------------- Evolutions (1) 500 Regions Visited (3) 600 Robots Destroyed (42) 210 Value Destroyed (1051) 1051 Prototype IDs (0) 0 Alien Tech Used (0) 0 Bonus (0) 0 TOTAL SCORE: 2361 Bonus ------- None Cogmind --------- Core Integrity 0/400 Matter 283/300 Energy 263/265 System Corruption 1% Temperature Cool (6) Movement Walking (190) Ox1 Location -9/Storage Parts ------- > --- POWER (1) -------- Improved Ion Engine > --- PROPULSION (4) --- Aluminum Leg Aluminum Leg Armored Wheel Armored Wheel > --- UTILITY (2) ------ Medium Storage Unit Utility Shielding > --- WEAPON (2) ------- Light Assault Rifle Heavy Assault Rifle > --- INVENTORY (10) --- Improved Ion Engine Improved Ion Engine Armored Wheel Heat Sink Cooling System Cooling System Large Matter Pod (150) Light Assault Rifle Heavy Assault Rifle Heavy Assault Rifle Peak State ------------ > --- POWER ------------ Improved Ion Engine > --- PROPULSION ------- Armored Wheel Armored Wheel Armored Wheel Armored Wheel > --- UTILITY ---------- Medium Storage Unit Utility Shielding > --- WEAPON ----------- Light Assault Rifle Heavy Assault Rifle > --- INVENTORY -------- Ion Engine Light Ion Engine Heat Sink Cooling System Cooling System Large Matter Pod Light Assault Rifle Light Assault Rifle [Rating: 16] Favorites ----------- Power Ion Engine Engine Ion Engine Propulsion Aluminum Leg Treads Light Treads Leg Aluminum Leg Wheel Armored Wheel Hover Unit Hover Unit Utility Utility Shielding Storage Medium Storage Unit Protection Utility Shielding Weapon Light Assault Rifle Ballistic Gun Light Assault Rifle Build | -11 -10 -9 -9 ------- Run | Yrd Mat Mat Sto Slots Evolved 2 | . . 2 . Power . | . . . . Propulsion 2 | . . 2 . Utility . | . . . . Weapon . | . . . . Parts Attached 45 | 6 1 22 16 Power 9 | 1 . 3 5 Engine 9 | 1 . 3 5 Core . | . . . . Reactor . | . . . . Propulsion 18 | 2 . 10 6 Treads 1 | . . 1 . Leg 11 | 2 . 7 2 Wheel 5 | . . 1 4 Hover 1 | . . 1 . Flight . | . . . . Utility 5 | 1 1 2 1 Device . | . . . . Storage 2 | 1 . 1 . Processor . | . . . . Hackware . | . . . . Protection 3 | . 1 1 1 Artifact . | . . . . Weapon 13 | 2 . 7 4 Energy Gun . | . . . . Energy Cannon . | . . . . Ballistic Gun 13 | 2 . 7 4 Ballistic Cannon . | . . . . Launcher . | . . . . Special Weapon . | . . . . Impact Weapon . | . . . . Slashing Weapon . | . . . . Piercing Weapon . | . . . . Special Melee Weapon . | . . . . Unidentified Prototypes . | . . . . Parts Lost 23 | . . 10 13 Power 5 | . . 2 3 Propulsion 10 | . . 7 3 Utility 2 | . . . 2 Weapon 6 | . . 1 5 Highest Loss Streak 6 | . . 6 5 To Critical Strikes 1 | . . . 1 Average Backups 7 | 3 6 7 7 Power . | . 1 . 1 Propulsion 3 | 2 5 4 . Utility 1 | . . 1 3 Weapon 1 | . . 1 2 Tool/Special . | . . . . Unused Backups 11 | . . 3 8 Power 2 | . . . 2 Propulsion 2 | . . 2 . Utility 5 | . . 1 4 Weapon 2 | . . . 2 Tool/Special . | . . . . Average Slot Usage (%) 91 | . 93 86 96 Engine 11 | . 13 10 10 Leg 23 | . 27 31 9 Wheel 9 | . . . 32 Storage 11 | . 14 11 11 Protection 10 | . 8 11 10 Ballistic Gun 23 | . 27 21 21 Peak Build Rating 16 | 6 7 11 16 Average Rating 9 | 4 6 9 13 On Entrance 5 | . 6 7 9 Avg Prop Armor Cover (%) 8 | . . 8 8 Naked Turns . | . . . . Heaviest Build 24 | 13 14 22 24 Greatest Support 48 | 20 20 40 48 Greatest Overweight (x) 5 | 1 3 5 1 Average Overweight (x) . | . . . . Largest Inventory Capacity 10 | 8 8 10 10 Average Capacity 8 | 6 8 8 10 Most Carried 10 | 5 8 10 10 Average Carried 7 | 3 6 7 7 Final Capacity 10 | 8 8 10 10 Final Carried 10 | 5 8 9 10 Class Distribution -------------------- 58% | Mutant 41% | Scavenger-Mutant Dominant Class ---------------- Mutant | -10/Materials Scavenger-Mutant | -9/Materials Mutant | -9/Storage Resources | -11 -10 -9 -9 ----------- Run | Yrd Mat Mat Sto Matter Collected 1405 | 232 114 476 583 Remotely . | . . . . Salvage Created 1312 | . 90 522 700 Parts 92 | . 9 47 36 Haulers Intercepted . | . . . . Recyclers Shooed 3 | . . 1 2 Parts Field Recycled . | . . . . Retrieved Matter . | . . . . Parts Self-Destructed . | . . . . Prevented . | . . . . Parts Restored . | . . . . Kills | -11 -10 -9 -9 ------- Run | Yrd Mat Mat Sto Combat Hostiles Destroyed 39 | . 4 16 19 Guns 39 | . 4 16 19 Classes Destroyed 5 | . 2 3 . Operator 1 | . . 1 . Watcher 2 | . . 2 . Swarmer 19 | . 2 10 7 Grunt 10 | . 2 4 4 Sentry 10 | . . 2 8 Best Kill Streak 4 | . 2 3 4 Combat Bots Only 4 | . 2 3 4 Max Kills in Single Turn 1 | . 1 1 1 Gunslinging . | . . . . Exploded . | . . . . Melee . | . . . . Uniques/NPCs Destroyed . | . . . . Combat | -11 -10 -9 -9 -------- Run | Yrd Mat Mat Sto Hostile Shots Fired 379 | . 32 166 181 Missed 102 | . 7 53 42 Hits 277 | . 25 113 139 Projectile 277 | . 25 113 139 Critical Strikes 1 | . . . 1 Damage Taken 2871 | . 213 1192 1466 Core 461 | . 61 160 240 Absorbed by Shields . | . . . . Redirected to Shielding 28 | . 4 12 12 Core Remaining (%) 87 | 100 75 . . Volleys Fired 177 | . 22 74 81 Largest 2 | . 2 2 2 Hottest 46 | . 40 46 46 Shots Fired 329 | . 41 137 151 Gun 329 | . 41 137 151 Cannon . | . . . . Launcher . | . . . . Special . | . . . . Kinetic 329 | . 41 137 151 Thermal . | . . . . Explosive . | . . . . Electromagnetic . | . . . . Robot Hit Streak 22 | . 9 9 22 Robot Miss Streak 6 | . 2 6 4 Penetration Max . | . . . . Secondary Targets 4 | . . 1 3 Max Gunslinging Chain 1 | . . 1 1 Shots Hit Robots 209 | . 20 87 102 Core Hits 82 | . 8 37 37 Critical Kills 1 | . . 1 . Critical Parts Destroyed 3 | . 1 . 2 Critical Strikes 4 | . 1 1 2 Destroy 4 | . 1 1 2 Melee Attacks . | . . . . Impact . | . . . . Slashing . | . . . . Piercing . | . . . . Sneak Attacks . | . . . . Combat Hostiles . | . . . . Follow-up Attacks . | . . . . Damage Inflicted 2274 | . 205 959 1110 Guns 2191 | . 205 899 1087 Cannons . | . . . . Explosions . | . . . . Melee . | . . . . Ramming 83 | . . 60 23 Kinetic 2191 | . 205 899 1087 Thermal . | . . . . Explosive . | . . . . Electromagnetic . | . . . . Impact . | . . . . Slashing . | . . . . Piercing . | . . . . Highest Corruption 1 | . . . 1 Average Corruption 1 | . . . 1 Corruption Purged . | . . . . Corruption Blocked . | . . . . Effects 1 | . . . 1 Matter Fused 1 | . . . 1 Overload Shots . | . . . . Overflow Damage . | . . . . Projectiles . | . . . . Explosions . | . . . . Melee . | . . . . Knockbacks 1 | . . 1 . Impact 1 | . . 1 . Kinetic . | . . . . Secondary . | . . . . Self-Inflicted Damage 10 | . . . 10 Shots . | . . . . Rammed 7 | . . . 7 Targets Rammed 22 | . . 14 8 Kicked 15 | . . 14 1 Crushed . | . . . . Highest Temperature 26 | . 6 13 26 Average Temperature 5 | . 6 3 6 Received Heat Transfer 606 | . 30 306 270 Siege Activations . | . . . . Martial Activations . | . . . . Shielding Activations . | . . . . Robots Disrupted . | . . . . Combat Hostiles . | . . . . Robots Corrupted . | . . . . Combat Hostiles . | . . . . Parts Fried . | . . . . Impact Corruptions . | . . . . Robots Melted . | . . . . Combat Hostiles . | . . . . Parts Melted . | . . . . Heat Transferred . | . . . . Parts Sabotaged . | . . . . Parts Stolen . | . . . . Parts Stripped . | . . . . Power Chain Reactions . | . . . . Alert | -11 -10 -9 -9 ------- Run | Yrd Mat Mat Sto Maximum Alert Level 1 | . . . 1 Low Security (%) 95 | 100 100 100 85 Level 1 4 | . . . 14 Level 2 . | . . . . Level 3 . | . . . . Level 4 . | . . . . Level 5 . | . . . . High Security . | . . . . Max Security . | . . . . Peak Influence 228 | . 65 141 228 Initial 13 | . . 13 . Average 66 | . 7 49 144 Influence Increases 1204 | . 115 470 619 Destroy 0b10 Robot/C 780 | . 80 320 380 Destroy 0b10 Robot/NC 15 | . . 15 . Destroy Leader 224 | . 20 74 130 Disable Machine 15 | . . 15 . Destroy Structure 5 | . . 1 4 Lose Combat Pursuer 165 | . 15 45 105 Influence Decreases 1056 | . 82 503 471 Entered New Map 20 | . . 20 . Time Decay 865 | . 82 413 370 Lost Part 171 | . . 70 101 Squads Dispatched 8 | . 1 2 5 Investigation . | . . . . Extermination . | . . . . Reinforcement 5 | . 1 2 2 Assault . | . . . . Garrison 3 | . . . 3 Intercept . | . . . . Searches Triggered . | . . . . Construction Impeded . | . . . . Haulers Reinforced . | . . . . Active Scanning Responses . | . . . . Cargo Convoy Interrupts . | . . . . Stealth | -11 -10 -9 -9 --------- Run | Yrd Mat Mat Sto Distress Signals 4 | . 1 1 2 Communications Jammed . | . . . . Distress Signals . | . . . . Times Spotted 72 | . 10 32 30 Peak Tracking Total 6 | . 4 6 5 Tactical Retreats 7 | . 1 2 4 Traps | -11 -10 -9 -9 ------- Run | Yrd Mat Mat Sto Traps Triggered 6 | . 5 . 1 Indirectly . | . . . . Trap Hack Attempts . | . . . . Triggered . | . . . . Disarmed . | . . . . Reprogrammed . | . . . . Reused . | . . . . Traps Extracted . | . . . . Installed . | . . . . Triggered . | . . . . Machines | -11 -10 -9 -9 ---------- Run | Yrd Mat Mat Sto Machines Disabled 1 | . . 1 . Max in Single Turn 1 | . . 1 . Machines Repaired . | . . . . Machines Dismantled . | . . . . Machines Sabotaged . | . . . . Overloaded Fab Kills . | . . . . Hacking | -11 -10 -9 -9 --------- Run | Yrd Mat Mat Sto Machines Accessed 1 | . 1 . . Terminals . | . . . . Fabricators . | . . . . Repair Stations . | . . . . Recycling Units 1 | . 1 . . Scanalyzers . | . . . . Garrison Access . | . . . . Total Hacks 1 | . 1 . . Successful . | . . . . Failed 1 | . 1 . . Catastrophic . | . . . . Database Lockouts . | . . . . Manual . | . . . . Terminals . | . . . . Fabricators . | . . . . Repair Stations . | . . . . Recycling Units 1 | . 1 . . Scanalyzers . | . . . . Garrison Access . | . . . . Terminal Hacks . | . . . . Fabricator Hacks . | . . . . Repair Station Hacks . | . . . . Recycling Unit Hacks . | . . . . Scanalyzer . | . . . . Garrison Access Hacks . | . . . . Unauthorized Hacks . | . . . . Terminals . | . . . . Fabricators . | . . . . Repair Stations . | . . . . Recycling Units . | . . . . Scanalyzers . | . . . . Garrison Access . | . . . . Data Cores Recovered 1 | . . 1 . Used . | . . . . Hacking Detections . | . . . . Full Trace Events . | . . . . Feedback Events . | . . . . Feedback Blocked . | . . . . Robot Schematics Acquired . | . . . . Robots Built . | . . . . Authchips . | . . . . Time . | . . . . Total Robot Build Rating . | . . . . Part Schematics Acquired . | . . . . Parts Built . | . . . . Authchips . | . . . . Time . | . . . . Total Part Build Rating . | . . . . Part Studies Acquired . | . . . . Parts Repaired . | . . . . Time . | . . . . Parts Recycled . | . . . . Recycled Matter . | . . . . Retrieved Matter . | . . . . Retrieved Components . | . . . . Parts Scanalyzed . | . . . . Part Schematics Acquired . | . . . . Parts Damaged . | . . . . Bothacking | -11 -10 -9 -9 ------------ Run | Yrd Mat Mat Sto Used RIF Installer . | . . . . Robots Hacked . | . . . . Non-combat . | . . . . Combat . | . . . . Robot Hacks Applied . | . . . . Relay Couplers Released . | . . . . Fabnet Peak Effective % . | . . . . Robots Rewired . | . . . . Allies Hacked . | . . . . Hacks Repelled . | . . . . Allies | -11 -10 -9 -9 -------- Run | Yrd Mat Mat Sto Total Allies . | . . . . Largest Group . | . . . . Highest-Rated Group . | . . . . Highest-Rated Ally . | . . . . Total Orders . | . . . . Ally Attacks . | . . . . Total Damage . | . . . . Kills . | . . . . Allies Corrupted . | . . . . Allies Melted . | . . . . Intel | -11 -10 -9 -9 ------- Run | Yrd Mat Mat Sto Active Infowar (turns) . | . . . . Robot Analysis Total . | . . . . Derelict Logs Recovered . | . . . . Drone Launches . | . . . . Drone Recoveries . | . . . . Exploration | -11 -10 -9 -9 ------------- Run | Yrd Mat Mat Sto Turns Passed 2988 | 89 741 1261 897 Spaces Moved 1825 | 63 512 747 503 Core 33 | 9 2 22 . Treads . | . . . . Legs 1444 | 54 510 723 157 Wheels 346 | . . . 346 Hover 2 | . . 2 . Flight . | . . . . Fastest Speed 50 | 50 120 120 90 Average Speed 122 | 113 120 126 118 Slowest Speed 300 | 120 200 300 190 Overloaded Moves . | . . . . Propulsion Burnouts . | . . . . Robots Hopped . | . . . . Potential Cave-ins . | . . . . Cave-ins Triggered . | . . . . Exploration Rate (%) 38 | 4 66 31 53 Regions Visited 3 Branch Regions 1 Pre-discovered Areas . | . . . . Known Exits Taken . | . . . . Unknown Exits Taken 3 | 1 1 1 . Scrap Searched . | . . . . Spaces Dug . | . . . . Terrain Destroyed . | . . . . Melee . | . . . . Projectile . | . . . . AOE . | . . . . Terrain Rammed . | . . . . Walls Destroyed . | . . . . Machines Disabled . | . . . . Actions | -11 -10 -9 -9 --------- Run | Yrd Mat Mat Sto Total 2291 | 77 596 949 669 Wait 145 | 4 52 53 36 Move 1822 | 62 511 746 503 Hop . | . . . . Pick Up 37 | 5 3 15 14 Fast Attach 22 | 6 8 4 4 Attach 31 | . . 17 14 Detach 11 | . . 8 3 Swap 8 | . . 6 2 Drop 16 | . . 12 4 Fire 177 | . 22 74 81 Melee . | . . . . Ram 7 | . . . 7 Kick 15 | . . 14 1 Crush . | . . . . Escape Stasis . | . . . . Rewire . | . . . . Trap . | . . . . Miscellaneous . | . . . . Route ------- -11/Scrapyard -10/Materials -9/Materials -9/Storage History --------- Turn | Location | Event 20 | -11/Scrapyard | Discovered new exit (range 15) 90 | -11/Scrapyard | Entered Materials 91 | -10/Materials | Met a group of wandering Federalists 300 | -10/Materials | Build established: Mutant 499 | -10/Materials | Discovered new exit (range 16) 831 | -10/Materials | Entered another Materials area 831 | -9/Materials | Evolved 2 slots: Propulsion x2 1176 | -9/Materials | Discovered new exit (range 11) 1289 | -9/Materials | Lost 6 parts (1p4n1w) 1639 | -9/Materials | Build established: Scavenger-Mutant 2092 | -9/Materials | Entered Storage 2139 | -9/Storage | Core integrity fell below 50% 2167 | -9/Storage | Lost 5 parts (1p2n1u1w) 2268 | -9/Storage | Lost 3 parts (1p2w) 2443 | -9/Storage | Build established: Mutant 2648 | -9/Storage | Garrison activated, responded to threat 2652 | -9/Storage | Core integrity fell below 20% 2694 | -9/Storage | Lost 3 parts (1u2w) 2891 | -9/Storage | Build established: Scavenger-Mutant 2989 | -9/Storage | Destroyed by G-34 Mercenary with Small Laser Last Messages --------------- G-34 Mercenary destroyed. K-01 Serf collects debris. Acquired 45 matter. Acquired 16 matter. Acquired Aluminum Leg. K-01 Serf collects debris. Dropped Lgt. Assault Rifle. Acquired Lgt. Assault Rifle. U-05 Engineer builds a Door. K-01 Serf collects debris. Acquired 30 matter. K-01 Serf collects debris. Acquired Imp. Ion Engine. Acquired Hvy. Assault Rifle. Dropped Hvy. Assault Rifle. Acquired Hvy. Assault Rifle. G-34 Mercenary destroyed. Acquired 12 matter. System corrupted: Matter fused (-8). Kicked K-01 Serf out of the way. Map ----- +----------------------------------------------------+ | ?""" # # #???# """ #?###????? | | ??## # # / #???# ### ####?? | | ???#[ # #########????#####+## ! #?? | | ???## ############ #???????#######??# + || #?? | | ????#???????????## ##?????? ???# ## || #?? | | ????????????????# ###### """""???# ## || #?? | | ????????????????# T" # """"" ## ## #?? | | ????????????????# " + """"" # ## #?? | | ????????????????# ### # ## #####+##### | | ????????????############ # ## ^ | | ????????????# ## + #T ^ ^ | | ????????????# ## # ## ^"""^ | | ????????????# ## ############ ^""" ^ | | ????????????# # #?????????# ^""" | | ????????????#| %+% #?????##### """ | | ????????????# # #?????# """ | | ????????????# ! # #?????# | | ????????????# ## ##?????# | | ????????????##+####+#### #??????# ############ | | ?????????????# #??# #??# #??????# #??????????# | | ?????????????# #??# #??# #??????# #??????????# | | ?????????????# #??# #?## ##?????# #??????????# | | ????????????## #### ### #???###+###????????# | | ???########## #???# #????????+ | | ???# r ##### #????????# | | ???#+########+######### @ # # """ #????????# | | ??? ???# ######g### # """ #????????# | | ??? ???# """ ## # # """ #????????# | | ?? ![ #??# """ ## # # #????????# | | ?? ![ #??# """ ## # # """ #????????# | | ? #??# ## # + """ #????????? | | ? ??# """ ## # # """ #???????????? | | # #??# """ ## # # #???????????? | | #######??# ""???# # # #???????????? | | ?????????# ????# + # #???????????? | | ?????????######????##########+########???????????? | | ?????????????????????????# ! ##?????????????? | | ?????????????????????????#"" #?????????????? | | ?????????????????????????#"T ##?????????????? | | ?????????????????????????#"" #??????????????? | | ?????????????????????????# #??????????????? | | ?????????????????????????# """ #??????????????? | | ?????????????????????????# """ #??????????????? | | ?????????????????????????# """ #??????????????? | | ?????????????????????????# #??????????????? | | ?????????????????????????##########??????????????? | | ?????????????????????????????????????????????????? | | ?????????????????????????????????????????????????? | | ?????????????????????????????????????????????????? | | ?????????????????????????????????????????????????? | +----------------------------------------------------+ Best States ------------- Heat Dissipation 28 Energy Generation 12 Energy Capacity 265 Matter Stores 300 Matter Capacity 300 Sight Range 16 Terrain Scan Density 10 Armor Coverage 150 Utility Shielding 33 Evasion (%) 55 Item Schematics ----------------- None Robot Schematics ------------------ None Fabricated ------------ Nothing Repaired ---------- Nothing Studied --------- None Alien Tech Used ----------------- None Achievements -------------- There's More Where That Came From Challenges ------------ None Game ------ Seed GodReactiveStorage Manual? 0 Play Time 00:35:54 Cumulative 9.0 hours Start 2026.02.14 @ 17:43:40 End 2026.02.14 @ 21:33:39 Sessions 4 Manual Loads 0 Difficulty Rogue Special Mode None Game No. 18 Rogue 18 Adventurer 0 Explorer 0 Win Type - Total 0 Types 0/0/0/0/0/0/0/0/0/0 Lore% 1 Gallery% 11 Achievement% 6 Wizard Run 0 Options --------- Layout 0 ASCII 0 Keyboard 1 Movement Vi Keybinds 0 Fullscreen 2 Font 24/Smallcaps Map View 76x50 Zoom Use 19% Tactical HUD 0 Map Filters NONE Filters NONE Steam 1 RUN: 74bd2cc8-4eae-48dc-966c-94e1fb7c64f1